bitfinex/quotes_BTCUSD_20250410
["timestamp","ask_amount","ask_price","bid_price","bid_amount"]
[1744253418067,0.0010128,82253.0,82252.0,0.99617291]
[1744253418702,1.28e-05,82253.0,82252.0,0.99217291]
[1744253419074,0.0010128,82253.0,82252.0,0.99717291]
[1744253420668,8e-07,82253.0,82252.0,0.99717291]
[1744253424130,4e-07,82255.0,82254.0,0.595306]
[1744253424333,4e-07,82255.0,82254.0,0.71585982]
[1744253424486,4e-07,82255.0,82254.0,0.80165334]
[1744253424808,4e-07,82255.0,82254.0,0.80665334]
[1744253425220,4e-07,82255.0,82254.0,0.83533218]
[1744253425538,4e-07,82255.0,82254.0,0.89817303]
[1744253425685,0.0003376,82274.0,82273.0,0.255247]
[1744253425889,0.0003376,82274.0,82273.0,0.60754455]
[1744253426106,0.0003376,82274.0,82273.0,0.62779318]
[1744253427309,0.0003376,82274.0,82273.0,0.62879318]
[1744253428331,0.0003376,82274.0,82273.0,0.58079318]
[1744253428486,0.0003376,82274.0,82273.0,0.62394747]
[1744253428703,0.0003376,82274.0,82273.0,0.58279318]
[1744253428910,0.0003376,82274.0,82273.0,0.55811434]
[1744253429436,0.0003376,82274.0,82273.0,0.56211434]
[1744253433192,0.0003376,82274.0,82273.0,0.56207434]
[1744253436140,0.0003376,82274.0,82273.0,0.52428082]
[1744253440382,0.0003376,82274.0,82273.0,0.56204878]
[1744253441590,0.0003376,82274.0,82273.0,0.41856878]
[1744253441803,0.0003376,82274.0,82273.0,0.56252878]
[1744253444469,0.0003376,82274.0,82273.0,0.90252878]
[1744253445158,0.0003376,82274.0,82273.0,0.92521832]
[1744253445564,0.0003376,82274.0,82273.0,0.92421832]
[1744253445805,0.0003376,82274.0,82273.0,0.92521832]
[1744253446035,0.0003376,82274.0,82273.0,0.92121832]
[1744253446503,0.0003376,82274.0,82273.0,0.92721832]
[1744253446922,0.0003376,82274.0,82273.0,0.92121832]
[1744253447123,0.0003376,82274.0,82273.0,0.96937261]
[1744253447329,0.0003376,82274.0,82273.0,0.92721832]
[1744253456000,0.0003376,82274.0,82273.0,0.78325832]
[1744253456203,0.0003376,82274.0,82273.0,0.92721832]
[1744253461788,0.0003376,82274.0,82273.0,0.78325832]
[1744253461983,0.0003376,82274.0,82273.0,0.92721832]
[1744253470808,0.0003376,82274.0,82273.0,0.78325832]
[1744253470997,0.0003376,82274.0,82273.0,0.92833832]
[1744253473278,0.0003376,82274.0,82273.0,0.58833832]
[1744253474033,0.0003376,82274.0,82273.0,0.44325832]
[1744253474241,0.0003376,82274.0,82273.0,0.30001496]
[1744253474454,0.0003376,82274.0,82273.0,0.18984796]
[1744253474673,0.01168734,82274.0,82273.0,0.44509496]
[1744253475101,0.01168734,82274.0,82273.0,0.43909496]
[1744253475358,0.05798734,82274.0,82273.0,0.43909496]
[1744253475578,0.05798734,82274.0,82273.0,0.44109496]
[1744253476007,0.0466376,82274.0,82273.0,0.43909496]
[1744253476200,0.0466376,82274.0,82273.0,0.44009496]
[1744253476542,0.0466376,82274.0,82273.0,0.44109496]
[1744253476954,0.05798142,82274.0,82273.0,0.44109496]
[1744253477158,0.0466376,82274.0,82273.0,0.44109496]
[1744253478655,0.0466376,82274.0,82273.0,0.46384101]
[1744253478854,0.0466376,82274.0,82273.0,0.31876101]
[1744253479455,0.05798142,82274.0,82273.0,0.31876101]
[1744253479696,0.0466376,82274.0,82273.0,0.31876101]
[1744253481592,0.0466376,82274.0,82273.0,0.29601496]
[1744253483582,0.0003376,82274.0,82273.0,0.41656878]
[1744253484213,0.0003376,82274.0,82273.0,0.29601496]
[1744253484688,0.31432542,82274.0,82273.0,0.04076796]
[1744253484898,0.3029816,82274.0,82273.0,0.04076796]
[1744253485119,0.31422543,82274.0,82273.0,0.04076796]
[1744253485344,0.31422543,82274.0,82273.0,0.003]
[1744253485585,0.31422543,82274.0,82273.0,0.001]
[1744253485967,0.36422543,82274.0,82270.0,0.243101]
[1744253486187,0.36422543,82274.0,82273.0,0.001]
[1744253487533,0.50051628,82274.0,82273.0,0.001]
[1744253491010,0.50051628,82274.0,82273.0,0.0254105]
[1744253492233,0.50051628,82274.0,82273.0,0.001]
[1744253494300,0.6210701,82274.0,82273.0,0.001]
[1744253494649,0.6210701,82274.0,82251.0,0.012157]
[1744253494650,0.352215,82251.0,82250.0,0.02]
[1744253495199,0.36324486,82251.0,82250.0,0.02]
[1744253495453,0.37778571,82251.0,82250.0,0.02]
[1744253495908,0.37778571,82251.0,82250.0,0.021]
[1744253496815,0.45073571,82251.0,82250.0,0.021]
[1744253497080,0.49953571,82251.0,82250.0,0.027]
[1744253497569,0.49953571,82251.0,82250.0,0.021]
[1744253497785,0.49953571,82251.0,82250.0,0.023]
[1744253498008,0.49953571,82251.0,82250.0,0.022]
[1744253498229,0.51170482,82251.0,82250.0,0.023]
[1744253499947,0.49953571,82251.0,82250.0,0.023]
[1744253501493,0.50882122,82251.0,82250.0,0.023]
[1744253501950,0.50882122,82251.0,82250.0,0.022]
[1744253502159,0.50882122,82251.0,82250.0,0.02]
[1744253502403,0.50882122,82251.0,82250.0,0.021]
[1744253502618,0.64528335,82251.0,82250.0,0.021]
[1744253504221,0.98528335,82251.0,82250.0,0.021]
[1744253504639,0.98528335,82251.0,82250.0,0.02]
[1744253504845,0.98528335,82251.0,82250.0,0.021]
[1744253505908,1.39568335,82251.0,82250.0,0.021]
[1744253506388,1.40068335,82251.0,82250.0,0.021]
[1744253506626,1.28012953,82251.0,82250.0,0.021]
[1744253506848,1.27512953,82251.0,82250.0,0.021]
[1744253507075,1.28112953,82251.0,82250.0,0.022]
[1744253518686,0.76057122,82251.0,82250.0,0.022]
[1744253519878,0.83352122,82251.0,82250.0,0.022]
[1744253520079,1.00067504,82251.0,82250.0,0.022]
[1744253520284,1.00917394,82251.0,82250.0,0.022]
[1744253520912,1.05737394,82251.0,82250.0,0.022]
[1744253521625,0.0466,82248.0,82222.0,0.0001687]
[1744253521861,0.255402,82223.0,82222.0,0.0001687]
[1744253522355,0.26612658,82223.0,82222.0,0.0001687]
[1744253523054,0.26612658,82223.0,82222.0,0.00021547]
[1744253525451,0.25396458,82223.0,82222.0,0.00021547]
[1744253526428,0.25696458,82223.0,82222.0,0.00021547]
[1744253526926,0.25696458,82223.0,82222.0,0.00221547]
[1744253529358,0.26912658,82223.0,82222.0,0.00221547]
[1744253530104,0.33366743,82223.0,82222.0,0.00221547]
[1744253530373,0.38877992,82223.0,82222.0,0.00221547]
[1744253534571,0.55493374,82223.0,82222.0,0.00221547]
[1744253534784,0.87145979,82223.0,82222.0,0.00221547]
[1744253535169,0.82585979,82223.0,82222.0,0.00221547]
[1744253535783,0.8173473,82223.0,82222.0,0.00221547]
[1744253537060,0.7707473,82223.0,82222.0,0.00221547]
[1744253537504,0.5153453,82223.0,82222.0,0.00221547]
[1744253537709,0.73590543,82223.0,82222.0,0.00221547]
[1744253537869,0.74806743,82223.0,82222.0,0.00221547]
[1744253538073,1.08806743,82223.0,82222.0,0.00221547]
[1744253538535,1.11074241,82223.0,82222.0,0.00221547]
[1744253538979,1.11924552,82223.0,82222.0,0.00221547]
[1744253539209,0.52384352,82223.0,82222.0,0.00221547]
[1744253539918,0.46534041,82223.0,82222.0,0.00221547]
[1744253540129,0.77074241,82223.0,82222.0,0.00221547]
[1744253541493,0.50079956,82223.0,82222.0,0.25762047]
[1744253541958,0.45079956,82223.0,82222.0,0.25762047]
[1744253542149,0.47812458,82223.0,82222.0,0.25762047]
[1744253544165,0.06372458,82223.0,82222.0,0.25762047]
[1744253546432,0.13667458,82223.0,82222.0,0.25762047]
[1744253546930,0.13667458,82223.0,82222.0,0.00221547]
[1744253547384,0.45181743,82223.0,82222.0,0.00221547]
[1744253547586,0.47450248,82223.0,82222.0,0.00221547]
[1744253547948,0.48584517,82223.0,82222.0,0.00221547]
[1744253548313,0.49435505,82223.0,82222.0,0.00221547]
[1744253551485,0.42140505,82223.0,82222.0,0.00221547]
[1744253558602,0.54195887,82223.0,82222.0,0.00221547]
[1744253559566,1.29635887,82223.0,82222.0,0.00221547]
[1744253560920,1.29635887,82223.0,82222.0,0.00021547]
[1744253561340,1.29635887,82223.0,82222.0,0.00121547]
[1744253561546,1.29335887,82223.0,82222.0,0.00121547]
[1744253561957,1.30035887,82223.0,82222.0,0.00121547]
[1744253562936,1.42079146,82223.0,82222.0,0.00121547]
[1744253563133,1.30035887,82223.0,82222.0,0.00121547]
[1744253564262,1.30035887,82223.0,82222.0,0.00021547]
[1744253564462,1.30035887,82223.0,82222.0,0.00121547]
[1744253564682,1.29335887,82223.0,82222.0,0.00121547]
[1744253564884,1.30235887,82223.0,82222.0,0.00121547]
[1744253566374,1.37530887,82223.0,82222.0,0.00121547]
[1744253566961,1.52042887,82223.0,82222.0,3.546e-05]
[1744253567133,0.668361,82220.0,82219.0,0.0001687]
[1744253567335,0.86407844,82220.0,82219.0,0.0001687]
[1744253567656,0.89527337,82220.0,82219.0,0.0001687]
[1744253567853,0.90661606,82220.0,82219.0,0.0001687]
[1744253568591,0.90661606,82220.0,82219.0,0.0011687]
[1744253569290,0.91561606,82220.0,82219.0,0.0011687]
[1744253570464,1.33001606,82220.0,82219.0,0.0011687]
[1744253582513,1.45044865,82220.0,82219.0,0.0011687]
[1744253582717,1.33001606,82220.0,82219.0,0.0011687]
[1744253582938,1.33001606,82220.0,82217.0,4e-07]
[1744253582939,0.763567,82218.0,82217.0,4e-07]
[1744253583147,0.94766167,82218.0,82217.0,4e-07]
[1744253583362,0.95809413,82218.0,82217.0,4e-07]
[1744253583566,0.328429,82198.0,82197.0,0.02]
[1744253583805,0.40338085,82198.0,82197.0,0.02010362]
[1744253584289,0.41472354,82198.0,82197.0,0.00010362]
[1744253584533,0.44591847,82198.0,82197.0,0.00010362]
[1744253585021,0.44591847,82198.0,82197.0,0.00110362]
[1744253585468,0.44991847,82198.0,82197.0,0.00110362]
[1744253585958,0.45917271,82198.0,82197.0,0.00110362]
[1744253586420,0.38622271,82198.0,82197.0,0.00110362]
[1744253586898,0.14279818,82198.0,82197.0,0.00110362]
[1744253587123,0.14279818,82198.0,82197.0,0.02716368]
[1744253587124,0.39827718,82198.0,82197.0,0.02716368]
[1744253587343,0.10805866,82198.0,82197.0,0.00110362]
[1744253587839,0.09671597,82198.0,82197.0,0.00110362]
[1744253588060,0.10888097,82198.0,82197.0,0.00110362]
[1744253588791,0.09671597,82198.0,82197.0,0.00110362]
[1744253589024,0.04671597,82198.0,82197.0,0.00110362]
[1744253589482,0.10888097,82198.0,82197.0,0.00110362]
[1744253591758,0.05888097,82198.0,82197.0,0.00110362]
[1744253591934,0.10888097,82198.0,82197.0,0.00110362]
[1744253592146,0.11888166,82198.0,82197.0,0.00110362]
[1744253592563,0.10671666,82198.0,82197.0,0.01099398]
[1744253592817,0.03292157,82198.0,82197.0,0.26647598]
[1744253593047,0.02441169,82198.0,82197.0,0.26647598]
[1744253593278,0.02441169,82198.0,82197.0,0.4809298]
[1744253593486,0.01400069,82198.0,82197.0,0.518824]
[1744253593689,0.01000069,82198.0,82197.0,0.518824]
[1744253594094,0.01200069,82198.0,82197.0,0.518824]
[1744253594308,0.01200069,82198.0,82197.0,0.517824]
[1744253594509,0.01000069,82198.0,82197.0,0.517824]
[1744253599758,0.01000069,82198.0,82197.0,0.664424]
[1744253599960,0.01000069,82198.0,82197.0,0.65453364]
[1744253601124,0.01000069,82198.0,82197.0,0.53397982]
[1744253601585,0.01000069,82198.0,82197.0,0.34037982]
[1744253604047,0.01000069,82198.0,82197.0,0.00010362]
[1744253604586,0.01878449,82198.0,82197.0,0.00010362]
[1744253604901,0.01000069,82198.0,82197.0,0.00010362]
[1744253605110,0.26547969,82198.0,82197.0,0.00010362]
[1744253605379,0.27426349,82198.0,82197.0,0.00010362]
[1744253606329,0.34721349,82198.0,82197.0,0.00010362]
[1744253606539,0.33880434,82198.0,82197.0,0.00010362]
[1744253607149,0.33880434,82198.0,82197.0,0.00110362]
[1744253607510,0.33880434,82198.0,82197.0,0.00010362]
[1744253607940,0.34080434,82198.0,82197.0,0.00010362]
[1744253612757,0.08532534,82198.0,82197.0,0.00010362]
[1744253613159,0.08532534,82198.0,82197.0,0.28557491]
[1744253613363,0.08532534,82198.0,82197.0,0.24342062]
[1744253614610,0.08532534,82198.0,82197.0,0.00010362]
[1744253615007,0.34080434,82198.0,82197.0,0.00010362]
[1744253616577,0.32863934,82198.0,82197.0,0.00010362]
[1744253616954,0.08532534,82198.0,82197.0,0.28557491]
[1744253617150,0.08532534,82198.0,82197.0,0.00010362]
[1744253617493,0.08532534,82198.0,82197.0,0.24342062]
[1744253617700,0.08532534,82198.0,82197.0,0.00010362]
[1744253618071,0.0852374,82198.0,82197.0,0.00010362]
[1744253618458,0.0852374,82198.0,82197.0,0.25558562]
[1744253618654,0.07069655,82198.0,82197.0,0.25558562]
[1744253618890,0.02069655,82198.0,82197.0,0.42377256]
[1744253619005,0.02069655,82198.0,82197.0,0.45922545]
[1744253619211,0.01200069,82198.0,82197.0,0.45922545]
[1744253619420,0.01200069,82198.0,82197.0,0.60586545]
[1744253619651,0.01000069,82198.0,82197.0,0.60586545]
[1744253622667,0.01000069,82198.0,82197.0,0.60686545]
[1744253622875,0.01000069,82198.0,82197.0,0.94686545]
[1744253623078,0.01000069,82198.0,82197.0,0.99416545]
[1744253623606,0.01000069,82198.0,82197.0,0.99316545]
[1744253623743,0.01100069,82198.0,82197.0,0.99416545]
[1744253624901,0.01100069,82198.0,82197.0,1.01690101]
[1744253628670,0.01100069,82198.0,82197.0,0.87026101]
[1744253628913,0.01100069,82198.0,82197.0,1.01486101]
[1744253631427,0.01100069,82198.0,82197.0,0.96756101]
[1744253632136,0.01100069,82198.0,82197.0,0.94482545]
[1744253633499,0.01100069,82198.0,82197.0,0.80022545]
[1744253633817,0.01100069,82198.0,82197.0,0.94482545]
[1744253634453,0.01100069,82198.0,82197.0,0.96753895]
[1744253635010,0.01100069,82198.0,82197.0,0.94482545]
[1744253636248,0.01100069,82198.0,82197.0,0.89962545]
[1744253637267,0.01100069,82198.0,82197.0,0.43907163]
[1744253641602,0.26647969,82198.0,82197.0,0.00110362]
[1744253641934,0.26170944,82198.0,82197.0,0.00110362]
[1744253642386,0.01839544,82198.0,82197.0,0.00110362]
[1744253642594,0.01739544,82198.0,82197.0,0.00010362]
[1744253642823,0.01739544,82198.0,82197.0,0.00110362]
[1744253642988,0.26070944,82198.0,82197.0,0.00110362]
[1744253643223,0.30740944,82198.0,82197.0,0.00110362]
[1744253643613,0.33411529,82198.0,82197.0,0.00110362]
[1744253643987,0.38411529,82198.0,82197.0,0.00110362]
[1744253645665,0.38411529,82198.0,82197.0,0.00010362]
[1744253645816,0.38611529,82198.0,82197.0,0.00010362]
[1744253649099,0.38621529,82198.0,82197.0,0.00010362]
[1744253652914,0.57971911,82198.0,82197.0,0.00010362]
[1744253653124,0.62861911,82198.0,82197.0,0.00010362]
[1744253653337,0.6492228,82198.0,82197.0,0.00010362]
[1744253653695,0.9892228,82198.0,82197.0,0.00010362]
[1744253654052,1.4036228,82198.0,82197.0,0.00010362]
[1744253654731,1.4016228,82198.0,82197.0,0.00010362]
[1744253654945,1.4066228,82198.0,82197.0,0.00010362]
[1744253655391,1.4016228,82198.0,82197.0,0.00010362]
[1744253655784,1.4106228,82198.0,82197.0,0.00010362]
[1744253656142,1.47441556,82198.0,82197.0,0.00010362]
[1744253656496,1.47541556,82198.0,82197.0,0.00010362]
[1744253657132,1.4116228,82198.0,82197.0,0.00010362]
[1744253657361,1.27652813,82198.0,82197.0,0.00010362]
[1744253657584,0.87550112,82198.0,82197.0,0.00010362]
[1744253657740,0.89004197,82198.0,82197.0,0.00010362]
[1744253657948,0.86702444,82198.0,82197.0,0.00010362]
[1744253658154,0.88156529,82198.0,82197.0,0.00010362]
[1744253658408,0.86702444,82198.0,82197.0,0.00010362]
[1744253658614,0.85802444,82198.0,82197.0,0.00010362]
[1744253658739,0.85702444,82198.0,82197.0,0.00010362]
[1744253659079,0.87456529,82198.0,82197.0,0.00010362]
[1744253660082,0.82456529,82198.0,82197.0,0.00010362]
[1744253660293,0.82786529,82198.0,82197.0,0.00010362]
[1744253663472,0.81570029,82198.0,82197.0,0.00010362]
[1744253663676,0.57238629,82198.0,82197.0,0.00010362]
[1744253663878,0.48489544,82198.0,82197.0,0.25558562]
[1744253664011,0.48286346,82198.0,82197.0,0.25558562]
[1744253664782,0.47986346,82198.0,82197.0,0.25558562]
[1744253665196,0.48286346,82198.0,82197.0,0.25558562]
[1744253666266,0.43286346,82198.0,82197.0,0.25558562]
[1744253666477,0.48286346,82198.0,82197.0,0.25558562]
[1744253666893,0.43286346,82198.0,82197.0,0.25558562]
[1744253667110,0.06846346,82198.0,82197.0,0.25558562]
[1744253667317,0.01846346,82198.0,82197.0,0.25558562]
[1744253667523,0.01310069,82198.0,82197.0,0.25558562]
[1744253667930,0.06310069,82198.0,82197.0,0.25558562]
[1744253668147,0.06857783,82198.0,82197.0,0.25558562]
[1744253668550,0.06310069,82198.0,82197.0,0.25558562]
[1744253668755,0.01848391,82198.0,82197.0,0.25558562]
[1744253668952,0.06310069,82198.0,82197.0,0.25558562]
[1744253669164,0.01310069,82198.0,82197.0,0.25558562]
[1744253669364,0.06310069,82198.0,82197.0,0.25558562]
[1744253669971,0.01310069,82198.0,82197.0,0.25558562]
[1744253670198,0.06310069,82198.0,82197.0,0.25558562]
[1744253670429,0.01310069,82198.0,82197.0,0.25558562]
[1744253670612,0.06310069,82198.0,82197.0,0.25558562]
[1744253671605,0.06548967,82198.0,82197.0,0.25558562]
[1744253672022,0.06748967,82198.0,82197.0,0.25558562]
[1744253672852,0.07965467,82198.0,82197.0,0.00010362]
[1744253672982,0.32296867,82198.0,82197.0,0.00010362]
[1744253673388,0.27296867,82198.0,82197.0,0.00010362]
[1744253673591,0.32296867,82198.0,82197.0,0.00010362]
[1744253678048,0.31080367,82198.0,82197.0,0.00010362]
[1744253678235,0.06748967,82198.0,82197.0,0.25558562]
[1744253678466,0.01210069,82198.0,82197.0,0.25558562]
[1744253678663,0.01210069,82198.0,82197.0,0.65643961]
[1744253678869,0.01210069,82198.0,82197.0,0.65400659]
[1744253679894,0.01010069,82198.0,82197.0,0.65400659]
[1744253680272,0.01010069,82198.0,82197.0,0.51216659]
[1744253680471,0.01010069,82198.0,82197.0,0.65500659]
[1744253681483,0.01010069,82198.0,82197.0,0.99500659]
[1744253681776,0.01010069,82198.0,82197.0,0.99400659]
[1744253681984,0.01010069,82198.0,82197.0,1.03616088]
[1744253682161,0.01110069,82198.0,82197.0,0.99500659]
[1744253682574,0.01010069,82198.0,82197.0,0.99400659]
[1744253682977,0.01110069,82198.0,82197.0,0.99500659]
[1744253689905,0.01110069,82198.0,82197.0,0.99388659]
[1744253698096,0.01110069,82198.0,82197.0,0.89678659]
[1744253707722,0.01110069,82198.0,82197.0,0.55678659]
[1744253711391,0.01110069,82198.0,82197.0,0.41506659]
[1744253711605,0.01110069,82198.0,82197.0,0.43623277]
[1744253712058,0.01110069,82198.0,82197.0,0.29451277]
[1744253712282,0.01110069,82198.0,82197.0,0.43623277]
[1744253712970,0.01010069,82198.0,82197.0,0.43523277]
[1744253714224,0.01010069,82198.0,82197.0,0.43623277]
[1744253714462,0.01010069,82198.0,82197.0,0.29451277]
[1744253714688,0.01010069,82198.0,82197.0,0.55562659]
[1744253715134,0.01010069,82198.0,82197.0,0.55662659]
[1744253722749,0.01010069,82198.0,82197.0,0.41506659]
[1744253722898,0.01010069,82198.0,82197.0,0.55662659]
[1744253725425,0.01010069,82198.0,82197.0,0.60532659]
[1744253725652,0.01010069,82198.0,82197.0,0.65482659]
[1744253725889,0.01010069,82198.0,82197.0,0.99482659]
[1744253726900,0.01010069,82198.0,82197.0,0.99382659]
[1744253727231,0.01110069,82198.0,82197.0,0.99682659]
[1744253729675,0.01110069,82198.0,82197.0,1.01960146]
[1744253736533,0.01110069,82198.0,82197.0,0.92140146]
[1744253736847,0.01110069,82198.0,82197.0,0.77984146]
[1744253737065,0.05880069,82198.0,82197.0,0.32587946]
[1744253737273,0.05880069,82198.0,82197.0,0.58136146]
[1744253737655,0.05880069,82198.0,82197.0,0.18435946]
[1744253737860,0.05880069,82198.0,82197.0,0.02587849]
[1744253737861,0.41107969,82198.0,82197.0,0.02587849]
[1744253738062,0.43112613,82198.0,82197.0,0.02587849]
[1744253738265,0.43112613,82198.0,82197.0,0.00310362]
[1744253738692,0.43960892,82198.0,82197.0,0.00310362]
[1744253739730,0.43860892,82198.0,82197.0,0.00010362]
[1744253740128,0.43860892,82198.0,82197.0,0.00310362]
[1744253740129,0.43960892,82198.0,82197.0,0.00310362]
[1744253740563,0.43860892,82198.0,82197.0,0.00010362]
[1744253740773,0.64448929,82198.0,82197.0,0.00010362]
[1744253740956,0.64548929,82198.0,82197.0,0.00310362]
[1744253741340,0.57253929,82198.0,82197.0,0.00310362]
[1744253742141,0.45198547,82198.0,82197.0,0.00310362]
[1744253742379,0.11958907,82198.0,82197.0,0.00310362]
[1744253742522,0.13412992,82198.0,82197.0,0.00310362]
[1744253742935,0.14629492,82198.0,82197.0,0.00310362]
[1744253743147,0.13412992,82198.0,82197.0,0.00310362]
[1744253743373,0.12564713,82198.0,82197.0,0.00310362]
[1744253743573,0.11430628,82198.0,82197.0,0.25858562]
[1744253743966,0.10880069,82198.0,82197.0,0.25858562]
[1744253744173,0.10880069,82198.0,82197.0,0.24642062]
[1744253744750,0.11403587,82198.0,82197.0,0.24642062]
[1744253745136,0.11403587,82198.0,82197.0,0.25858562]
[1744253745538,0.06110069,82198.0,82197.0,0.25858562]
[1744253746100,0.06633816,82198.0,82197.0,0.25858562]
[1744253746696,0.06633816,82198.0,82197.0,0.24642062]
[1744253746854,0.06633816,82198.0,82197.0,0.00310362]
[1744253747745,0.06633816,82198.0,82197.0,0.24642062]
[1744253748086,0.06633816,82198.0,82197.0,0.25858562]
[1744253748741,0.01633816,82198.0,82197.0,0.25858562]
[1744253748948,0.06633816,82198.0,82197.0,0.25858562]
[1744253749158,0.06110069,82198.0,82197.0,0.25858562]
[1744253749669,0.30441469,82198.0,82197.0,0.00310362]
[1744253749889,0.31657969,82198.0,82197.0,0.00310362]
[1744253750055,0.32189438,82198.0,82197.0,0.00310362]
[1744253750690,0.42813523,82198.0,82197.0,0.00310362]
[1744253751460,0.50115523,82198.0,82197.0,0.00310362]
[1744253754746,0.24567623,82198.0,82197.0,0.02936348]
[1744253754946,0.48899023,82198.0,82197.0,0.02936348]
[1744253755173,0.24567623,82198.0,82197.0,0.04152848]
[1744253755377,0.01641538,82198.0,82197.0,0.28484548]
[1744253755514,0.06641538,82198.0,82197.0,0.28484548]
[1744253755916,0.06641538,82198.0,82197.0,0.24642062]
[1744253756111,0.06641538,82198.0,82197.0,0.25858562]
[1744253756344,0.06641538,82198.0,82197.0,0.00310362]
[1744253757174,0.30972938,82198.0,82197.0,0.00310362]
[1744253757576,0.06641538,82198.0,82197.0,0.00310362]
[1744253757838,0.06641538,82198.0,82197.0,0.25858562]
[1744253759737,0.01641538,82198.0,82197.0,0.25858562]
[1744253759953,0.01641538,82198.0,82197.0,0.38157241]
[1744253760127,0.01641538,82198.0,82197.0,0.37913944]
[1744253760358,0.01110069,82198.0,82197.0,0.37913944]
[1744253761566,0.01010069,82198.0,82197.0,0.37613944]
[1744253762327,0.01110069,82198.0,82197.0,0.38213944]
[1744253763358,0.01110069,82198.0,82197.0,0.41995516]
[1744253764829,0.01110069,82198.0,82197.0,0.56147516]
[1744253766035,0.01110069,82198.0,82197.0,0.52365944]
[1744253766580,0.01110069,82198.0,82197.0,0.38213944]
[1744253766786,0.01110069,82198.0,82197.0,0.52365944]
[1744253769782,0.01110069,82198.0,82197.0,0.40310562]
[1744253770637,0.01110069,82198.0,82197.0,0.26158562]
[1744253773250,0.01110069,82198.0,82197.0,0.38213944]
[1744253773470,0.01110069,82198.0,82197.0,0.42000992]
[1744253773669,0.01110069,82198.0,82197.0,0.46700992]
[1744253773870,0.01110069,82198.0,82197.0,0.60852992]
[1744253775622,0.01110069,82198.0,82197.0,0.56148992]
[1744253775759,0.01110069,82198.0,82197.0,0.42000992]
[1744253775965,0.01110069,82198.0,82197.0,0.52361944]
[1744253776596,0.01110069,82198.0,82197.0,0.56149618]
[1744253778536,0.01110069,82198.0,82197.0,0.42001618]
[1744253778740,0.01110069,82198.0,82197.0,0.56149618]
[1744253779723,6.9e-07,82198.0,82197.0,0.90149618]
[1744253780132,6.9e-07,82198.0,82197.0,0.94719618]
[1744253781485,0.05,82217.0,82216.0,0.255424]
[1744253781916,0.0468,82225.0,82223.0,0.255402]
[1744253782120,0.0468,82225.0,82224.0,0.255398]
[1744253782230,0.0968,82225.0,82224.0,0.255398]
[1744253782433,0.05,82229.0,82228.0,0.255386]
[1744253782677,0.012159,82243.0,82228.0,0.255386]
[1744253782678,0.05,82239.0,82238.0,0.012159]
[1744253782871,0.05,82239.0,82238.0,0.255355]
[1744253783123,0.0937,82245.0,82244.0,0.255336]
[1744253783554,0.09932012,82245.0,82244.0,0.255336]
[1744253783725,0.14932012,82245.0,82244.0,0.255336]
[1744253783928,0.11386097,82245.0,82244.0,0.255336]
[1744253784935,0.11386097,82245.0,82242.0,0.243184]
[1744253785141,0.05,82243.0,82242.0,0.243184]
[1744253785440,0.07016691,82243.0,82242.0,0.255343]
[1744253786379,0.06454085,82242.0,82241.0,0.243187]
[1744253786582,0.06454085,82242.0,82241.0,0.255346]
[1744253786808,0.07017284,82242.0,82241.0,0.255346]
[1744253788698,0.012159,82240.0,82235.0,0.243205]
[1744253788922,0.00567442,82239.0,82236.0,0.243199]
[1744253789125,0.00567442,82239.0,82223.0,0.14144]
[1744253789126,0.243232,82226.0,82223.0,0.14144]
[1744253789330,0.00572188,82225.0,82222.0,0.243243]
[1744253789533,0.24895888,82225.0,82221.0,0.012162]
[1744253789936,0.00572188,82225.0,82222.0,0.012162]
[1744253790153,0.095,82227.0,82225.0,0.243232]
[1744253790352,0.00571002,82226.0,82225.0,0.243232]
[1744253790557,0.00571002,82226.0,82225.0,0.255393]
[1744253791168,0.293258,82217.0,82212.0,0.12055382]
[1744253791332,0.05,82215.0,82214.0,0.24336462]
[1744253791546,0.05569223,82215.0,82214.0,0.24336462]
[1744253791751,0.05569223,82215.0,82214.0,0.25552762]
[1744253792626,0.05569223,82215.0,82214.0,0.26052762]
[1744253793029,0.05,82215.0,82214.0,0.26052762]
[1744253793594,0.05,82221.0,82220.0,0.255411]
[1744253794131,0.1416,82233.0,82231.0,0.243216]
[1744253794340,0.05,82225.0,82224.0,0.012161]
[1744253794558,0.05,82225.0,82214.0,0.00010362]
[1744253794559,0.05,82221.0,82214.0,0.00010362]
[1744253794788,0.00569771,82220.0,82216.0,0.243259]
[1744253794993,0.00569771,82220.0,82219.0,0.243252]
[1744253795441,0.01454085,82218.0,82214.0,0.00010362]
[1744253795646,0.30279785,82218.0,82215.0,0.243264]
[1744253795857,0.00569771,82217.0,82216.0,0.243261]
[1744253796321,0.07871771,82217.0,82216.0,0.243261]
[1744253796564,0.00569771,82217.0,82216.0,0.243261]
[1744253798031,0.00569771,82217.0,82216.0,0.255424]
[1744253798232,0.00569771,82217.0,82216.0,0.260424]
[1744253800216,0.05,82221.0,82216.0,0.005]
[1744253800450,0.05,82221.0,82218.0,0.255417]
[1744253800451,0.01454085,82220.0,82218.0,0.255417]
[1744253800696,0.01454085,82220.0,82217.0,0.012162]
[1744253800697,0.13756085,82217.0,82216.0,0.005]
[1744253800954,0.92793467,82217.0,82216.0,0.005]
[1744253801179,0.328447,82215.0,82214.0,0.00010362]
[1744253801430,0.56004167,82215.0,82214.0,0.00010362]
[1744253801663,0.57392908,82215.0,82214.0,0.00010362]
[1744253802149,0.58598861,82215.0,82214.0,0.00010362]
[1744253802358,0.57392908,82215.0,82214.0,0.00010362]
[1744253803591,0.57392908,82215.0,82214.0,0.00510362]
[1744253804270,0.57392908,82215.0,82214.0,0.00010362]
[1744253804716,0.5654618,82215.0,82214.0,0.00510362]
[1744253804979,1.3798618,82215.0,82214.0,0.00510362]
[1744253805223,1.3798618,82215.0,82214.0,0.00010362]
[1744253805452,0.353498,82192.0,82185.0,0.0001688]
[1744253805675,0.36803885,82192.0,82185.0,0.0001688]
[1744253805913,0.37350041,82192.0,82185.0,0.0001688]
[1744253806936,0.37350041,82192.0,82189.0,0.2435087]
[1744253807154,0.37350041,82192.0,82189.0,0.0001687]
[1744253807601,0.37350041,82192.0,82191.0,0.009]
[1744253807847,0.32550041,82192.0,82191.0,0.009]
[1744253808295,0.07000241,82192.0,82191.0,0.009]
[1744253808532,0.47000241,82192.0,82191.0,0.009]
[1744253808746,0.47000241,82192.0,82191.0,0.252335]
[1744253808997,0.02000241,82192.0,82191.0,0.05115429]
[1744253809220,0.02000241,82192.0,82191.0,0.264501]
[1744253809664,0.01454085,82192.0,82191.0,0.264501]
[1744253810737,0.06454085,82192.0,82191.0,0.264501]
[1744253810983,0.07000237,82192.0,82191.0,0.264501]
[1744253811682,0.07000237,82192.0,82191.0,0.009]
[1744253811899,0.32550037,82192.0,82191.0,0.009]
[1744253813509,0.00546152,82192.0,82191.0,0.29100273]
[1744253813744,0.00546152,82192.0,82191.0,0.264501]
[1744253813973,0.05,82194.0,82193.0,0.012166]
[1744253814330,0.305498,82192.0,82191.0,0.009]